bitfinex/quotes_BTCUSD_20250716
["timestamp","ask_amount","ask_price","bid_price","bid_amount"]
[1752686590344,0.24289533,119490.0,119480.0,1.44640859]
[1752686590563,0.24289533,119490.0,119480.0,1.63111359]
[1752686590986,0.24289533,119490.0,119480.0,1.57093059]
[1752686591243,0.24289533,119490.0,119480.0,1.49593059]
[1752686591684,0.24289533,119490.0,119480.0,1.85959459]
[1752686592592,0.24289533,119490.0,119480.0,2.75765659]
[1752686593296,0.24289533,119490.0,119480.0,2.72435159]
[1752686593531,0.21659533,119490.0,119480.0,2.72435159]
[1752686593767,0.21659533,119490.0,119480.0,2.68963559]
[1752686594200,0.24259533,119490.0,119480.0,2.68963559]
[1752686594649,0.24259533,119490.0,119480.0,1.40881159]
[1752686594878,1.26724309,119490.0,119460.0,0.002]
[1752686595181,0.7206293,119470.0,119460.0,0.002]
[1752686595398,0.72226013,119450.0,119440.0,0.003]
[1752686595620,0.72432013,119450.0,119440.0,0.003]
[1752686595840,0.85856013,119450.0,119440.0,0.003]
[1752686596064,0.86157013,119450.0,119440.0,0.343]
[1752686596290,0.86157013,119450.0,119440.0,0.003]
[1752686596519,0.72733013,119450.0,119440.0,0.34350139]
[1752686596751,0.86153013,119450.0,119440.0,0.34350139]
[1752686597179,0.39098783,119450.0,119440.0,0.00350139]
[1752686597403,0.39098783,119450.0,119440.0,0.84350139]
[1752686597631,0.39098783,119450.0,119440.0,0.34350139]
[1752686598074,0.85092387,119450.0,119440.0,0.34802558]
[1752686598486,0.85192387,119450.0,119440.0,0.34802558]
[1752686599120,0.39198783,119450.0,119440.0,0.34802558]
[1752686599831,0.85192387,119450.0,119440.0,0.34802558]
[1752686600400,0.85192387,119450.0,119440.0,0.37258544]
[1752686600647,0.85192387,119450.0,119440.0,0.34802558]
[1752686601575,0.85192387,119450.0,119440.0,0.00350139]
[1752686601802,0.39198783,119450.0,119440.0,0.00350139]
[1752686602018,0.85184387,119450.0,119440.0,0.00350139]
[1752686602243,0.39186783,119450.0,119440.0,0.00350139]
[1752686603149,0.39086783,119450.0,119440.0,0.00350139]
[1752686604294,0.39486783,119450.0,119440.0,0.00350139]
[1752686604526,0.26078783,119450.0,119440.0,0.00350139]
[1752686604747,0.39486783,119450.0,119440.0,0.00350139]
[1752686604957,0.23478783,119450.0,119440.0,0.50282706]
[1752686605160,0.23478783,119450.0,119440.0,0.47758139]
[1752686609017,0.25948783,119450.0,119440.0,0.47758139]
[1752686609982,0.25948783,119450.0,119440.0,0.50277684]
[1752686615609,0.23478783,119450.0,119440.0,0.50277684]
[1752686615854,0.20477783,119450.0,119440.0,0.64032984]
[1752686616128,0.18817698,119450.0,119440.0,4.02296416]
[1752686616570,0.18817698,119450.0,119440.0,3.56302812]
[1752686617006,0.18817656,119450.0,119440.0,3.73884854]
[1752686617223,0.18817698,119450.0,119440.0,4.2095339]
[1752686617658,0.18817698,119450.0,119440.0,4.03371341]
[1752686617870,0.18417698,119450.0,119440.0,4.03371341]
[1752686618090,0.18517698,119450.0,119440.0,4.03371341]
[1752686620902,0.18517698,119450.0,119440.0,3.56302812]
[1752686621118,0.18517698,119450.0,119440.0,2.77655512]
[1752686621333,0.18517698,119450.0,119440.0,2.64247512]
[1752686621539,0.18517698,119450.0,119440.0,2.61777512]
[1752686621772,0.18517698,119450.0,119440.0,2.75157512]
[1752686621987,0.18517698,119450.0,119440.0,2.75153512]
[1752686622203,0.18517698,119450.0,119440.0,3.34229712]
[1752686623097,0.18517698,119450.0,119440.0,3.53800812]
[1752686623314,0.17680563,119450.0,119440.0,3.56440812]
[1752686623521,0.18517698,119450.0,119440.0,3.56440812]
[1752686625115,0.18517698,119450.0,119440.0,3.48939412]
[1752686625318,0.18517698,119450.0,119440.0,3.46755112]
[1752686626211,0.18517698,119450.0,119440.0,3.56440812]
[1752686626652,0.18517698,119450.0,119440.0,0.64775712]
[1752686626930,0.18517698,119450.0,119440.0,3.56440812]
[1752686628399,0.18517698,119450.0,119440.0,4.2109139]
[1752686628615,0.17680563,119450.0,119440.0,4.03509341]
[1752686629017,0.17680563,119450.0,119440.0,4.2025415]
[1752686629245,0.17680563,119450.0,119440.0,4.21091383]
[1752686629450,0.17680563,119450.0,119440.0,4.22765786]
[1752686629451,0.01774249,119450.0,119440.0,4.22765786]
[1752686629652,0.01774249,119450.0,119440.0,4.69834315]
[1752686629869,0.001,119450.0,119440.0,4.69834315]
[1752686630071,0.001,119450.0,119440.0,4.56458315]
[1752686630285,0.001,119450.0,119440.0,4.69830315]
[1752686630941,0.19251638,119470.0,119460.0,0.18416156]
[1752686631149,0.02510992,119470.0,119460.0,4.19284864]
[1752686631359,0.02510992,119470.0,119460.0,4.19609864]
[1752686631564,0.03348015,119470.0,119460.0,4.19609864]
[1752686631769,0.20925649,119470.0,119460.0,4.19609864]
[1752686631994,0.20088668,119470.0,119460.0,4.18772813]
[1752686632392,0.03448064,119470.0,119460.0,4.19609871]
[1752686632563,0.02611034,119470.0,119460.0,3.73378393]
[1752686632763,0.19351638,119470.0,119460.0,4.19609871]
[1752686633180,0.01773969,119470.0,119460.0,1.28781822]
[1752686633438,0.01773941,119470.0,119460.0,4.20446922]
[1752686633796,0.001,119470.0,119460.0,4.40526922]
[1752686634001,0.00936967,119470.0,119460.0,4.40526922]
[1752686634399,0.001,119470.0,119460.0,4.40526922]
[1752686635291,0.001,119470.0,119460.0,1.48861822]
[1752686635494,0.001,119470.0,119460.0,4.40526922]
[1752686635921,0.001,119470.0,119460.0,4.27154922]
[1752686636134,0.02710565,119490.0,119480.0,0.58689999]
[1752686636345,0.02710565,119490.0,119480.0,4.19537656]
[1752686636545,0.02710565,119490.0,119480.0,4.19862656]
[1752686637318,0.02725596,119490.0,119480.0,4.19862656]
[1752686637527,0.20300288,119490.0,119480.0,4.20699588]
[1752686638340,0.19563454,119490.0,119480.0,3.40176128]
[1752686638554,0.71102252,119490.0,119480.0,0.80782028]
[1752686638774,0.71102252,119490.0,119480.0,0.439807]
[1752686639416,0.71102252,119490.0,119480.0,0.826769]
[1752686639857,0.71102252,119490.0,119480.0,0.47368]
[1752686640215,0.71102252,119490.0,119480.0,1.207013]
[1752686640423,0.24033723,119490.0,119480.0,1.0102]
[1752686640642,0.71102252,119490.0,119480.0,1.0102]
[1752686641022,0.24033723,119490.0,119480.0,1.0102]
[1752686641426,0.24033723,119490.0,119480.0,0.47368]
[1752686641639,0.24033723,119490.0,119480.0,1.420964]
[1752686641843,0.18089723,119490.0,119480.0,1.816476]
[1752686642273,0.20789723,119490.0,119480.0,2.728156]
[1752686642478,0.18089723,119490.0,119480.0,2.728156]
[1752686642689,0.20789723,119490.0,119480.0,2.728156]
[1752686643206,0.18089723,119490.0,119480.0,2.730106]
[1752686643408,0.18089723,119490.0,119480.0,3.392281]
[1752686644054,0.17889723,119490.0,119480.0,3.50764128]
[1752686645473,0.17889723,119490.0,119480.0,3.53328174]
[1752686649227,0.17889723,119490.0,119480.0,0.61663074]
[1752686649426,0.17889723,119490.0,119480.0,3.53328174]
[1752686649682,0.18089723,119490.0,119480.0,3.50343174]
[1752686649876,0.21243723,119490.0,119480.0,3.50148174]
[1752686650758,0.18089723,119490.0,119480.0,3.50343174]
[1752686650947,0.17889723,119490.0,119480.0,3.67407377]
[1752686651182,0.17889723,119490.0,119480.0,3.7427129]
[1752686651390,0.17889723,119490.0,119480.0,3.75108236]
[1752686651595,0.00315031,119490.0,119480.0,4.22741058]
[1752686651795,0.02825575,119490.0,119480.0,4.22741023]
[1752686651914,0.03662451,119490.0,119480.0,4.22741023]
[1752686652344,0.02825575,119490.0,119480.0,4.22741023]
[1752686652794,0.20400267,119490.0,119480.0,4.21904112]
[1752686653146,0.20400267,119490.0,119480.0,3.76782051]
[1752686653415,0.18726592,119490.0,119480.0,0.81769223]
[1752686653654,0.18726592,119490.0,119480.0,3.73434323]
[1752686653869,0.17889723,119490.0,119480.0,3.50664174]
[1752686654759,0.17889723,119490.0,119480.0,3.53274174]
[1752686656596,0.17889723,119490.0,119480.0,3.39910174]
[1752686656800,0.17889723,119490.0,119480.0,3.53274174]
[1752686657482,0.17889723,119490.0,119480.0,0.61609074]
[1752686657764,0.17889723,119490.0,119480.0,3.53256074]
[1752686658679,0.17889723,119490.0,119480.0,3.50646074]
[1752686660751,0.17889723,119490.0,119480.0,3.67385277]
[1752686660956,0.17889723,119490.0,119480.0,3.70852237]
[1752686661083,0.17889723,119490.0,119480.0,4.17897502]
[1752686661486,0.17052833,119490.0,119480.0,4.00321339]
[1752686662128,0.17052833,119490.0,119480.0,4.17060542]
[1752686662388,0.17052833,119490.0,119480.0,4.17897502]
[1752686662597,0.17052833,119490.0,119480.0,4.18734448]
[1752686662809,0.01988762,119490.0,119480.0,4.19571387]
[1752686663013,0.19563447,119490.0,119480.0,4.22998319]
[1752686663206,0.19563447,119490.0,119480.0,4.22161387]
[1752686663652,0.19563447,119490.0,119480.0,4.22998319]
[1752686663853,0.19563447,119490.0,119480.0,4.22161387]
[1752686664201,0.18726592,119490.0,119480.0,4.20487502]
[1752686664402,0.17889716,119490.0,119480.0,4.19650542]
[1752686664602,0.17052833,119490.0,119480.0,4.00321339]
[1752686665040,0.17052833,119490.0,119480.0,4.18117495]
[1752686665307,0.17052833,119490.0,119480.0,4.17280542]
[1752686665518,0.17052833,119490.0,119480.0,4.18117502]
[1752686665733,0.17052833,119490.0,119480.0,4.18954455]
[1752686665938,0.17052833,119490.0,119480.0,4.17280542]
[1752686666519,0.17052833,119490.0,119480.0,4.18117502]
[1752686666720,0.17052833,119490.0,119480.0,4.17280542]
[1752686667841,0.17052833,119490.0,119480.0,4.18117502]
[1752686668270,0.17052833,119490.0,119480.0,4.17280542]
[1752686668469,0.17052833,119490.0,119480.0,4.18117502]
[1752686668676,0.17052833,119490.0,119480.0,4.17280542]
[1752686669014,0.17052833,119490.0,119480.0,4.18117502]
[1752686669219,0.17052833,119490.0,119480.0,4.18954455]
[1752686669420,0.17052833,119490.0,119480.0,4.18117502]
[1752686669614,0.17052833,119490.0,119480.0,4.18954455]
[1752686669819,0.17052833,119490.0,119480.0,4.18117502]
[1752686670224,0.17052833,119490.0,119480.0,4.00541339]
[1752686670675,0.17052833,119490.0,119480.0,4.14430542]
[1752686671027,0.17052833,119490.0,119480.0,3.97691339]
[1752686671419,0.17052833,119490.0,119480.0,4.14430542]
[1752686671651,0.17052833,119490.0,119480.0,3.97691339]
[1752686673950,0.17052833,119490.0,119480.0,4.14430542]
[1752686674119,0.17052833,119490.0,119480.0,3.97691339]
[1752686674330,0.17052833,119490.0,119480.0,4.14430542]
[1752686674773,0.17889716,119490.0,119480.0,4.15267495]
[1752686674985,0.17889716,119490.0,119480.0,4.18824441]
[1752686675350,0.02825617,119490.0,119480.0,4.21634441]
[1752686675595,0.02825617,119490.0,119480.0,4.22471373]
[1752686675596,0.0282561,119490.0,119480.0,4.22471373]
[1752686675798,0.20400302,119490.0,119480.0,4.23308298]
[1752686676001,0.19563461,119490.0,119480.0,4.19960542]
[1752686676209,0.18726599,119490.0,119480.0,4.00411339]
[1752686676611,0.18726599,119490.0,119480.0,4.17150542]
[1752686677440,0.18726599,119490.0,119480.0,1.25485442]
[1752686677583,0.18726599,119490.0,119480.0,1.27159355]
[1752686677859,0.18726599,119490.0,119480.0,4.18824455]
[1752686678035,0.18726599,119490.0,119480.0,4.19661401]
[1752686678650,0.18726599,119490.0,119480.0,4.21484455]
[1752686678886,0.18726599,119490.0,119480.0,4.22321401]
[1752686679248,0.18726599,119490.0,119480.0,4.21484455]
[1752686679451,0.17889723,119490.0,119480.0,3.73602237]
[1752686679801,0.17889723,119490.0,119480.0,4.21484455]
[1752686680056,0.17889723,119490.0,119480.0,4.22321401]
[1752686680258,0.17889723,119490.0,119480.0,4.20647502]
[1752686680464,0.17889723,119490.0,119480.0,3.72765277]
[1752686680642,0.17889723,119490.0,119480.0,4.17150542]
[1752686680823,0.17889723,119490.0,119480.0,4.17987502]
[1752686681226,0.17889723,119490.0,119480.0,4.21634455]
[1752686681397,0.17889723,119490.0,119480.0,4.22471394]
[1752686681593,0.01151858,119490.0,119480.0,4.23308319]
[1752686681978,0.00315031,119490.0,119480.0,4.71190495]
[1752686682899,0.002,119510.0,119500.0,1.05752042]
[1752686683132,0.00205012,119510.0,119500.0,4.1953117]
[1752686683359,0.00205012,119510.0,119500.0,4.1984717]
[1752686684289,0.00205012,119510.0,119500.0,1.2818207]
[1752686684524,0.00205012,119510.0,119500.0,4.1984717]
[1752686686152,0.00205012,119510.0,119500.0,4.2004717]
[1752686687001,0.00205012,119510.0,119500.0,4.1984717]
[1752686687423,0.00205012,119510.0,119500.0,3.72801905]
[1752686687640,0.00205012,119510.0,119500.0,4.1984717]
[1752686689107,0.01878421,119510.0,119500.0,4.05021607]
[1752686689309,0.01041706,119510.0,119500.0,4.2004317]
[1752686689723,0.00205012,119510.0,119500.0,3.72997905]
[1752686689939,0.00205012,119510.0,119500.0,4.2004317]
[1752686690967,0.00205012,119510.0,119500.0,1.2837807]
[1752686691170,0.00205012,119510.0,119500.0,4.2004317]
[1752686691376,0.00205012,119510.0,119500.0,0.81332805]
[1752686691596,0.00205012,119510.0,119500.0,4.2003917]
[1752686693033,0.00205012,119510.0,119500.0,3.72993905]
[1752686693239,0.00205012,119510.0,119500.0,4.2003917]
[1752686693397,0.00205012,119510.0,119500.0,1.2837407]
[1752686693598,0.00205012,119510.0,119500.0,4.2003917]
[1752686701423,0.19647137,119510.0,119500.0,3.34416128]
[1752686701628,0.19647137,119510.0,119500.0,3.64488529]
[1752686701629,0.227952,119510.0,119500.0,3.64488529]
[1752686701888,0.06060185,119510.0,119500.0,0.74497048]
[1752686702094,0.24768478,119510.0,119500.0,3.00416128]
[1752686702290,0.71813743,119510.0,119500.0,0.35540828]
[1752686702817,0.71813743,119510.0,119500.0,0.22087028]
[1752686702974,0.71813743,119510.0,119500.0,0.59753328]
[1752686703205,0.24768478,119510.0,119500.0,1.27701028]
[1752686703411,0.73267828,119510.0,119500.0,0.71614]
[1752686703620,0.23841533,119490.0,119480.0,0.02564046]
[1752686703828,0.18414615,119470.0,119460.0,0.002]
[1752686704025,0.24061615,119470.0,119460.0,2.57863328]
[1752686704193,0.7140488,119470.0,119460.0,0.44111828]
[1752686704712,0.72858965,119470.0,119460.0,0.339621]
[1752686704936,0.72858965,119470.0,119460.0,0.002]
[1752686705182,0.71802566,119470.0,119460.0,0.13536]
[1752686705415,0.80353594,119470.0,119460.0,1e-08]
[1752686705638,0.93689594,119470.0,119460.0,1e-08]
[1752686706603,0.72002566,119470.0,119460.0,0.50000001]
[1752686706843,0.71802566,119470.0,119460.0,1e-08]
[1752686707077,0.71802566,119470.0,119460.0,0.0313184]
[1752686707355,0.25351783,119450.0,119440.0,0.4608677]
[1752686707597,0.71537649,119450.0,119440.0,0.43651031]
[1752686707820,0.71835649,119450.0,119440.0,0.43651031]
[1752686708726,0.71835649,119450.0,119440.0,0.66918331]
[1752686709422,0.26046783,119450.0,119440.0,0.66918331]
[1752686709663,0.72035649,119450.0,119440.0,0.66918331]
[1752686709874,0.72035649,119450.0,119440.0,0.6949031]
[1752686710330,0.19949861,119450.0,119440.0,1.20239119]
[1752686710573,0.20291975,119450.0,119440.0,3.49219087]
[1752686710796,0.18617726,119450.0,119440.0,3.32474278]
[1752686711021,0.17780577,119450.0,119440.0,3.32474278]
[1752686711245,0.17140407,119450.0,119440.0,3.31327038]
[1752686711904,0.17140407,119450.0,119440.0,3.16416538]
[1752686712120,0.16940407,119450.0,119440.0,3.31327038]
[1752686714565,0.16940407,119450.0,119440.0,3.48071847]
[1752686714771,0.16940407,119450.0,119440.0,3.31327038]
[1752686715598,0.16940407,119450.0,119440.0,1.14107838]
[1752686715827,0.17233407,119450.0,119440.0,1.14107838]
[1752686716235,0.16940407,119450.0,119440.0,1.14107838]
[1752686716668,0.16940407,119450.0,119440.0,3.31343038]
[1752686719372,0.16743239,119460.0,119450.0,0.34]
[1752686719584,0.16953239,119460.0,119450.0,2.85116028]
[1752686720829,0.16440525,119460.0,119450.0,2.98452028]
[1752686721526,0.17577961,119470.0,119460.0,0.34]
[1752686721743,0.17577961,119470.0,119460.0,2.85431028]
[1752686722000,0.17787961,119470.0,119460.0,2.98448028]
[1752686722696,0.17787961,119470.0,119460.0,3.15190033]
[1752686722923,0.17787961,119470.0,119460.0,3.15505033]
[1752686723152,0.17787961,119470.0,119460.0,2.98763028]
[1752686723631,0.17577961,119470.0,119460.0,3.15505033]
[1752686723867,0.17577961,119470.0,119460.0,3.16342133]
[1752686724110,0.18194538,119480.0,119470.0,0.50740604]
[1752686724356,0.16740453,119480.0,119470.0,2.98448028]
[1752686724599,0.16740453,119480.0,119470.0,3.15188632]
[1752686724834,0.16740453,119480.0,119470.0,3.16025662]
[1752686725063,0.16740453,119480.0,119470.0,3.15188632]
[1752686725286,0.16940453,119480.0,119470.0,3.16340662]
[1752686725505,0.01873899,119480.0,119470.0,3.17177657]
[1752686725722,0.03547728,119480.0,119470.0,3.16340655]
[1752686725948,0.03547728,119480.0,119470.0,3.17177657]
[1752686726365,0.03547728,119480.0,119470.0,0.74824657]
[1752686726575,0.19450027,119480.0,119470.0,3.15503632]
[1752686726788,0.18613102,119480.0,119470.0,3.15503632]
[1752686726999,0.18613102,119480.0,119470.0,3.18014673]
[1752686727210,0.18613102,119480.0,119470.0,3.17177671]
[1752686727417,0.18613102,119480.0,119470.0,3.18014673]
[1752686727625,0.18613102,119480.0,119470.0,3.17177671]
[1752686727840,0.18613102,119480.0,119470.0,3.15503632]
[1752686728046,0.18613102,119480.0,119470.0,2.98763028]
[1752686728259,0.01873815,119480.0,119470.0,3.18014638]
[1752686728517,0.01873815,119480.0,119470.0,3.20854652]
[1752686728743,0.01873815,119480.0,119470.0,3.21691633]
[1752686728966,0.03547679,119480.0,119470.0,3.2169164]
[1752686729437,0.01865991,119480.0,119470.0,3.22528621]
[1752686729660,0.02702902,119480.0,119470.0,3.22528621]
[1752686730127,0.02510726,119480.0,119470.0,3.22528621]
[1752686730347,0.03347672,119480.0,119470.0,3.2169164]
[1752686730575,0.03347658,119480.0,119470.0,3.22728621]
[1752686730807,0.02510726,119480.0,119470.0,3.22728621]
[1752686731038,0.01673801,119480.0,119470.0,3.22728621]
[1752686731266,0.01673808,119480.0,119470.0,3.22728621]
[1752686731480,0.02510733,119480.0,119470.0,3.22728621]
[1752686732157,0.01673808,119480.0,119470.0,3.22728621]
[1752686732388,0.03347658,119480.0,119470.0,3.22728621]
[1752686732614,0.03347658,119480.0,119470.0,3.21054652]
[1752686732844,0.03347658,119480.0,119470.0,3.2189164]
[1752686733103,0.03347658,119480.0,119470.0,3.69777422]
[1752686733333,0.002,119490.0,119480.0,0.19250048]
[1752686733555,0.18611561,119490.0,119480.0,2.70850231]
[1752686733785,0.18611561,119490.0,119480.0,2.82331177]
[1752686734244,0.02710607,119490.0,119480.0,2.83168109]
[1752686734471,0.19448409,119490.0,119480.0,2.83168116]
[1752686734698,0.19498538,119490.0,119480.0,2.83168116]
[1752686734941,0.19498538,119490.0,119480.0,2.83168109]
[1752686734942,0.01923846,119490.0,119480.0,2.83168109]
[1752686735169,0.02760729,119490.0,119480.0,2.82331177]
[1752686735388,0.19498531,119490.0,119480.0,2.8316813]
[1752686735633,0.19498531,119490.0,119480.0,2.82331184]
[1752686735863,0.19498531,119490.0,119480.0,2.83168123]
[1752686736087,0.01086956,119490.0,119480.0,2.84005027]
[1752686736304,0.02760673,119490.0,119480.0,2.83268116]
[1752686736527,0.03597563,119490.0,119480.0,2.8326813]
[1752686736754,0.03597556,119490.0,119480.0,3.3674387]
[1752686737039,0.00250129,119490.0,119480.0,3.38417713]
[1752686737234,0.01673542,119500.0,119490.0,0.24001547]
[1752686737502,0.002,119510.0,119500.0,1.00736401]
[1752686737726,0.00208391,119510.0,119500.0,3.70636606]
[1752686738842,0.01045085,119510.0,119500.0,3.70836606]
[1752686739061,0.01045078,119510.0,119500.0,3.70836606]
[1752686739289,0.01673283,119520.0,119510.0,0.18408466]
[1752686739516,0.01673283,119520.0,119510.0,2.83159494]
[1752686739745,0.01673255,119520.0,119510.0,2.83373223]
[1752686739959,0.0334658,119520.0,119510.0,2.8337323]
[1752686740178,0.03346573,119520.0,119510.0,2.86765424]
[1752686740397,0.03346566,119520.0,119510.0,2.85928702]
[1752686740617,0.03346566,119520.0,119510.0,2.86765424]
[1752686741087,0.03346566,119520.0,119510.0,2.87602139]
[1752686741343,0.04183239,119520.0,119510.0,2.85928702]
[1752686741555,0.20080223,119520.0,119510.0,2.85091973]
[1752686742005,0.20080223,119520.0,119510.0,2.8425523]
[1752686742226,0.20290223,119520.0,119510.0,2.8425523]
[1752686742665,0.20290223,119520.0,119510.0,2.85928723]
[1752686742886,0.04393302,119520.0,119510.0,2.86765459]
[1752686743323,0.04183302,119520.0,119510.0,2.86765459]
[1752686743680,0.03346615,119520.0,119510.0,2.87602181]
[1752686744135,0.03346615,119520.0,119510.0,2.87602188]
[1752686744346,0.03346615,119520.0,119510.0,2.86765459]
[1752686744557,0.20916896,119520.0,119510.0,2.8509198]
[1752686744771,0.20285258,119520.0,119510.0,2.85928723]
[1752686745181,0.03551657,119520.0,119510.0,2.86765459]
[1752686745574,0.03346657,119520.0,119510.0,2.86765459]
[1752686746146,0.03346657,119520.0,119510.0,2.85928723]
[1752686746582,0.02509977,119520.0,119510.0,2.87602188]
[1752686746850,0.20285251,119520.0,119510.0,2.53673229]
[1752686747070,0.2196994,119520.0,119510.0,2.66989229]
[1752686747533,0.1892994,119520.0,119510.0,2.8393023]
[1752686747779,0.00836624,119520.0,119510.0,2.88896709]
[1752686748008,0.02509907,119520.0,119510.0,3.36782232]
[1752686748262,0.03346573,119520.0,119510.0,2.88896709]
[1752686748548,0.04183253,119520.0,119510.0,2.8805998]
[1752686748808,0.2008023,119520.0,119510.0,2.8508998]
[1752686749773,0.2008023,119520.0,119510.0,2.8508598]
[1752686750006,0.2028523,119520.0,119510.0,2.8508598]
[1752686750233,0.2008023,119520.0,119510.0,2.85922723]
[1752686750682,0.2008023,119520.0,119510.0,2.8508598]
[1752686750908,0.2008023,119520.0,119510.0,2.85922723]
[1752686751373,0.03346622,119520.0,119510.0,2.86759459]
[1752686751585,0.02509949,119520.0,119510.0,2.87596181]
[1752686751796,0.03346622,119520.0,119510.0,2.87596188]
[1752686752011,0.01673283,119520.0,119510.0,2.88432903]
[1752686752226,0.01873185,119530.0,119520.0,0.52406926]
[1752686752439,0.19441954,119530.0,119520.0,3.15478629]
[1752686752874,0.01036547,119530.0,119520.0,3.16315302]
[1752686753095,0.002,119530.0,119520.0,3.71177386]
[1752686753306,0.01036547,119530.0,119520.0,3.71177386]
[1752686753912,0.01973108,119530.0,119520.0,3.71177386]
[1752686754323,0.0280969,119530.0,119520.0,3.711774]
[1752686754523,0.01973108,119530.0,119520.0,3.72014038]
[1752686754759,0.02809683,119530.0,119520.0,3.72014038]
[1752686754966,0.03646272,119530.0,119520.0,3.711774]
[1752686755170,0.03646272,119530.0,119520.0,3.681374]
[1752686755380,0.02809683,119530.0,119520.0,3.681374]
[1752686755592,0.01973108,119530.0,119520.0,3.68974031]
[1752686756222,0.02809683,119530.0,119520.0,3.67300755]
[1752686756656,0.02809683,119530.0,119520.0,3.68974038]
[1752686756968,0.02809683,119530.0,119520.0,3.69810669]
[1752686757186,0.01973108,119530.0,119520.0,3.69810669]
[1752686757406,0.01709108,119530.0,119520.0,3.69810669]
[1752686757625,0.03382265,119530.0,119520.0,3.21088599]
[1752686757838,0.02545676,119530.0,119520.0,3.68974038]
[1752686758055,0.02545676,119530.0,119520.0,3.69810669]
[1752686758476,0.03382251,119530.0,119520.0,3.69810669]
[1752686758693,0.03382251,119530.0,119520.0,3.681374]
[1752686758909,0.0421884,119530.0,119520.0,3.681374]
[1752686759120,0.04282896,119530.0,119520.0,3.67300762]
[1752686759358,0.03446293,119530.0,119520.0,3.681374]
[1752686759792,0.03446286,119530.0,119520.0,3.681374]
[1752686760013,0.01773136,119530.0,119520.0,3.71984031]
[1752686760354,0.01773136,119530.0,119520.0,3.70256849]
[1752686760687,0.01773136,119530.0,119520.0,3.67246849]
[1752686761155,0.00936561,119530.0,119520.0,3.67246849]
[1752686761378,0.001,119530.0,119520.0,3.67246849]
[1752686761583,0.03956786,119540.0,119530.0,0.18405386]
[1752686761832,0.04793319,119540.0,119530.0,2.83449996]
[1752686762077,0.03956744,119540.0,119530.0,2.84815564]
[1752686762324,0.05629775,119540.0,119530.0,2.83142414]
[1752686762575,0.23197116,119540.0,119530.0,2.81469229]
[1752686762792,0.22360639,119540.0,119530.0,2.81469229]
[1752686763081,0.22360639,119540.0,119530.0,2.82305839]
[1752686763352,0.22360639,119540.0,119530.0,2.83142442]
[1752686763622,0.04793298,119540.0,119530.0,2.8481562]
[1752686763869,0.05629838,119540.0,119530.0,2.83979038]
[1752686764116,0.04793298,119540.0,119530.0,2.84815627]
[1752686764406,0.01647648,119540.0,119530.0,3.72520947]
[1752686764869,0.00811527,119540.0,119530.0,3.72520947]
[1752686765093,0.04751882,119550.0,119530.0,3.72520947]
[1752686765094,0.03915461,119550.0,119540.0,0.18403846]
[1752686765322,0.20028486,119550.0,119540.0,2.57433929]
[1752686765588,0.19192044,119550.0,119540.0,2.22879328]
[1752686765798,0.19192044,119550.0,119540.0,2.17918429]
[1752686766012,0.19192044,119550.0,119540.0,2.18754969]
[1752686766456,0.19192044,119550.0,119540.0,2.81977369]
[1752686767134,0.19192044,119550.0,119540.0,2.82077369]
[1752686767358,0.02257559,119550.0,119540.0,3.31122215]
[1752686767590,0.03093994,119550.0,119540.0,3.30285703]
[1752686767844,0.21496314,119550.0,119540.0,3.2861263]
[1752686768035,0.20659907,119550.0,119540.0,2.82400369]
[1752686768765,0.20659907,119550.0,119540.0,2.81563829]
[1752686769291,0.19823479,119550.0,119540.0,2.82400369]
[1752686769536,0.19823479,119550.0,119540.0,2.81563829]
[1752686769813,0.18987044,119550.0,119540.0,2.68263829]
[1752686770088,0.71612396,119550.0,119540.0,0.49436128]
[1752686770321,0.03617071,119550.0,119540.0,0.66166929]
[1752686770537,0.02257601,119550.0,119540.0,3.2861263]
[1752686770769,0.03930499,119550.0,119540.0,3.29449163]
[1752686770991,0.206599,119550.0,119540.0,2.81563829]
[1752686771222,0.19823479,119550.0,119540.0,2.81563829]
[1752686771511,0.03094078,119550.0,119540.0,2.81563829]
[1752686771737,0.03094078,119550.0,119540.0,2.82400355]
[1752686772229,0.03094078,119550.0,119540.0,2.82400362]
[1752686772437,0.19823479,119550.0,119540.0,2.82400369]
[1752686772702,0.19192044,119550.0,119540.0,2.64510028]
[1752686772946,0.19510044,119550.0,119540.0,2.81034829]
[1752686773153,0.19192044,119550.0,119540.0,2.81240829]
[1752686773587,0.18987044,119550.0,119540.0,0.40025369]
[1752686773801,0.18987044,119550.0,119540.0,2.81541829]
[1752686775633,0.18987044,119550.0,119540.0,0.40025369]
[1752686775849,0.00584724,119550.0,119540.0,3.37080166]
[1752686776066,0.02257573,119550.0,119540.0,3.34826664]
[1752686776277,0.02257573,119550.0,119540.0,0.92473664]
[1752686776514,0.02257573,119550.0,119540.0,3.33990173]
[1752686776925,0.03094022,119550.0,119540.0,3.3399018]
[1752686777135,0.03094015,119550.0,119540.0,3.37365181]
[1752686777350,0.00584724,119550.0,119540.0,3.75291672]
[1752686777584,0.02175743,119560.0,119550.0,0.59218727]
[1752686777810,0.02175743,119560.0,119550.0,3.7624318]
[1752686778050,0.01339692,119560.0,119550.0,3.73638732]
[1752686778276,0.00553333,119570.0,119560.0,0.59427118]
[1752686778489,0.02528626,119580.0,119570.0,0.21499228]
[1752686778747,0.02528626,119580.0,119570.0,3.34097352]
[1752686778957,0.1925383,119580.0,119570.0,3.28488432]
[1752686779191,0.20289132,119580.0,119570.0,2.81974961]
[1752686779477,0.02528668,119580.0,119570.0,3.30997401]
[1752686779709,0.02528668,119580.0,119570.0,3.32670005]
[1752686779946,0.01692422,119580.0,119570.0,3.35689956]
[1752686780173,0.02528647,119580.0,119570.0,3.35689921]
[1752686780395,0.00856204,119580.0,119570.0,3.38689921]
[1752686780631,0.01692415,119580.0,119570.0,3.41348097]
[1752686780859,0.0252864,119580.0,119570.0,3.41348097]
[1752686781309,0.0252864,119580.0,119570.0,3.39675528]
[1752686781540,0.0252864,119580.0,119570.0,3.41348097]
[1752686781764,0.0252864,119580.0,119570.0,0.98995097]
[1752686782019,0.01692415,119580.0,119570.0,3.41348097]
[1752686782226,0.0252864,119580.0,119570.0,3.41348097]
[1752686782443,0.00856204,119580.0,119570.0,3.77952545]
[1752686782698,0.0002,119580.0,119570.0,3.77952545]
[1752686783133,0.0002,119580.0,119570.0,3.80462145]
[1752686783596,0.01692415,119580.0,119570.0,3.80462145]
[1752686783804,0.01692415,119580.0,119570.0,1.38109145]
[1752686784022,0.03364893,119580.0,119570.0,3.80462145]
[1752686784240,0.03364893,119580.0,119570.0,3.33413344]
[1752686784448,0.03364893,119580.0,119570.0,3.80462145]
[1752686784671,0.20090097,119580.0,119570.0,3.79625864]
[1752686784889,0.1758145,119580.0,119570.0,3.54722032]
[1752686785110,0.1758145,119580.0,119570.0,3.64994032]
[1752686785320,0.1758145,119580.0,119570.0,3.66666657]
[1752686785530,0.16745204,119580.0,119570.0,3.48267429]
[1752686785782,0.16745204,119580.0,119570.0,3.01218628]
[1752686785998,0.16944204,119580.0,119570.0,2.98709028]
[1752686786206,0.16944204,119580.0,119570.0,2.98408028]
[1752686786860,0.16944204,119580.0,119570.0,3.15970961]
[1752686787086,0.16944204,119580.0,119570.0,3.17108284]